[Event "European Online Club-ch-G 2021"]
[Site "Online"]
[Date "2021.03.27"]
[Round "5.17"]
[White "Sevdimaliyev, Urfan"]
[Black "Mica, Marek"]
[Result "0-1"]
[ECO "D02"]
[WhiteElo "2369"]
[BlackElo "2274"]
[Annotator "NA"]
[PlyCount "110"]
[EventDate "2021.03.27"]
[EventType "team-tourn"]
[EventCountry "NET"]
[SourceTitle "playchess.com"]
[Source "ChessBase"]
[SourceQuality "1"]
[TimeControl "900+5"]

1. d4 {[%emt 0:00:00]} d5 {[%emt 0:00:12]} 2. Nf3 {[%emt 0:00:04]} e6 {[%emt 0:00:05]} 3. Bf4 {[%emt 0:00:20]} Bd6 {[%emt 0:00:03]} 4. Bg3 {[%emt 0:00:12]} Nf6 {[%emt 0:00:08]} 5. Nbd2 {[%emt 0:00:05]} O-O {[%emt 0:00:13]} 6. e3 {[%emt 0:00:21]} c5 {[%emt 0:00:06]} 7. c3 {[%emt 0:00:04]} Qc7 {[%emt 0:00:09]} 8. Bd3 {[%emt 0:00:25]} Nbd7 {[%emt 0:00:11]} 9. e4 {[%emt 0:00:59]} cxd4 {[%emt 0:02:09]} 10. cxd4 {[%emt 0:01:02]} Bxg3 {[%emt 0:00:05]} 11. hxg3 {[%emt 0:00:04]} dxe4 {[%emt 0:00:02]} 12. Nxe4 {[%emt 0:00:05]} Nxe4 {[%emt 0:00:07]} 13. Bxe4 {[%emt 0:00:03]} Nf6 {[%emt 0:00:02]} 14. Bd3 {[%emt 0:00:21]} Qa5+ {[%emt 0:00:06]} 15. Kf1 {[%emt 0:00:17]} b6 {[%emt 0:00:41]} 16. g4 {[%emt 0:00:47]} g6 {[%emt 0:01:04]} 17. Ne5 {[%emt 0:00:59]} Bb7 {[%emt 0:01:16]} 18. g5 {[%emt 0:00:26]} Qd5 {[%emt 0:04:37]} 19. gxf6 {[%emt 0:00:30]} Qxg2+ {[%emt 0:00:02]} 20. Ke2 {[%emt 0:00:03]} Rfd8 {[%emt 0:01:10]} 21. Rh4 {[%emt 0:01:08]} Qg5 {[%emt 0:00:47]} 22. Re4 {[%emt 0:00:57]} Bxe4 {[%emt 0:00:36]} 23. Bxe4 {[%emt 0:00:03]} Rac8 {[%emt 0:00:26]} 24. Qd3 {[%emt 0:00:49]} Qxf6 {[%emt 0:00:09]} 25. Rh1 {[%emt 0:00:13]} Qg7 {[%emt 0:00:56]} 26. f4 {[%emt 0:00:56]} f6 {[%emt 0:00:39]} 27. Nc6 {[%emt 0:00:23]} Rd6 {[%emt 0:00:12]} 28. Rc1 {[%emt 0:00:53]} Rc7 {[%emt 0:00:14]} 29. Qf3 {[%emt 0:01:58]} f5 {[%emt 0:00:41]} 30. Qa3 {[%emt 0:00:45]} Qf8 {[%emt 0:00:09]} 31. Bf3 {[%emt 0:00:21]} Rxd4 {[%emt 0:00:07]} 32. Qb3 {[%emt 0:00:08]} Rd6 {[%emt 0:00:02]} 33. Rc3 {[%emt 0:00:34]} Qe8 {[%emt 0:00:03]} 34. Ne5 {[%emt 0:00:15]} Rxc3 {[%emt 0:00:03]} 35. bxc3 {[%emt 0:00:10]} Qd8 {[%emt 0:00:03]} 36. Qc4 {[%emt 0:00:11]} Kg7 {[%emt 0:00:10]} 37. a4 {[%emt 0:00:14]} Kf6 {[%emt 0:00:05]} 38. a5 {[%emt 0:00:22]} bxa5 {[%emt 0:00:04]} 39. Qc5 {[%emt 0:00:07]} Qe7 {[%emt 0:00:08]} 40. Qc8 {[%emt 0:00:12]} Rd8 {[%emt 0:00:03]} 41. Qc6 {[%emt 0:00:10]} Qd6 {[%emt 0:00:03]} 42. Qxd6 {[%emt 0:00:23]} Rxd6 {[%emt 0:00:01]} 43. Nc4 {[%emt 0:00:03]} Rd8 {[%emt 0:00:06]} 44. Nxa5 {[%emt 0:00:03]} g5 {[%emt 0:00:03]} 45. fxg5+ {[%emt 0:00:03]} Kxg5 {[%emt 0:00:01]} 46. c4 {[%emt 0:00:03]} Rc8 {[%emt 0:00:04]} 47. Kd3 {[%emt 0:00:04]} e5 {[%emt 0:00:02]} 48. Bb7 {[%emt 0:00:06]} Rc7 {[%emt 0:00:02]} 49. Bc6 {[%emt 0:00:15]} Kf4 {[%emt 0:00:04]} 50. c5 {[%emt 0:00:02]} e4+ {[%emt 0:00:05]} 51. Kd4 {[%emt 0:00:03]} h5 {[%emt 0:00:02]} 52. Bb5 {[%emt 0:00:05]} h4 {[%emt 0:00:02]} 53. c6 {[%emt 0:00:04]} h3 {[%emt 0:00:03]} 54. Bf1 {[%emt 0:00:03]} Kg3 {[%emt 0:00:04]} 55. Kd5 {[%emt 0:00:04]} h2 {[%emt 0:00:04]} 0-1

[Event "European Online Club-ch-G 2021"]
[Site "Online"]
[Date "2021.03.27"]
[Round "5.18"]
[White "Stalmach, Richard"]
[Black "Babayev, Talib"]
[Result "0-1"]
[ECO "E63"]
[WhiteElo "2296"]
[BlackElo "2282"]
[Annotator "NA"]
[PlyCount "94"]
[EventDate "2021.03.27"]
[EventType "team-tourn"]
[EventCountry "NET"]
[SourceTitle "playchess.com"]
[Source "ChessBase"]
[SourceQuality "1"]
[TimeControl "900+5"]

1. d4 {[%emt 0:00:00]} Nf6 {[%emt 0:00:04]} 2. c4 {[%emt 0:00:07]} g6 {[%emt 0:00:03]} 3. Nc3 {[%emt 0:00:05]} Bg7 {[%emt 0:00:07]} 4. Nf3 {[%emt 0:00:08]} O-O {[%emt 0:00:05]} 5. g3 {[%emt 0:00:06]} d6 {[%emt 0:00:04]} 6. Bg2 {[%emt 0:00:03]} Nc6 {[%emt 0:00:03]} 7. O-O {[%emt 0:00:03]} a6 {[%emt 0:00:02]} 8. Bf4 {[%emt 0:00:04]} Nd7 {[%emt 0:00:23]} 9. e4 {[%emt 0:01:43]} e5 {[%emt 0:00:29]} 10. Bg5 {[%emt 0:00:03]} f6 {[%emt 0:00:16]} 11. Be3 {[%emt 0:00:27]} exd4 {[%emt 0:00:29]} 12. Nxd4 {[%emt 0:00:10]} Nde5 {[%emt 0:00:02]} 13. Qe2 {[%emt 0:01:18]} Ng4 {[%emt 0:00:21]} 14. Nxc6 {[%emt 0:00:09]} bxc6 {[%emt 0:00:03]} 15. Bd2 {[%emt 0:00:19]} Rb8 {[%emt 0:00:13]} 16. h3 {[%emt 0:00:46]} Ne5 {[%emt 0:00:26]} 17. f4 {[%emt 0:00:04]} Nf7 {[%emt 0:00:14]} 18. Nd1 {[%emt 0:02:59]} c5 {[%emt 0:00:23]} 19. Bc3 {[%emt 0:00:19]} Qe8 {[%emt 0:00:54]} 20. Ne3 {[%emt 0:00:34]} f5 {[%emt 0:00:08]} 21. Bxg7 {[%emt 0:00:09]} Kxg7 {[%emt 0:00:04]} 22. exf5 {[%emt 0:00:14]} Bxf5 {[%emt 0:00:16]} 23. Nxf5+ {[%emt 0:00:11]} gxf5 {[%emt 0:00:04]} 24. Qd3 {[%emt 0:00:27]} Qe7 {[%emt 0:00:25]} 25. Qxf5 {[%emt 0:01:10]} Rxb2 {[%emt 0:00:09]} 26. Be4 {[%emt 0:00:21]} Rg8 {[%emt 0:00:30]} 27. Rae1 {[%emt 0:00:25]} Kf8 {[%emt 0:00:16]} 28. Bd5 {[%emt 0:01:29]} Rxg3+ {[%emt 0:00:08]} 29. Kh1 {[%emt 0:00:03]} Qf6 {[%emt 0:00:27]} 30. Qxh7 {[%emt 0:02:22]} Nh6 {[%emt 0:00:08]} 31. Qd7 {[%emt 0:00:14]} Nf7 {[%emt 0:01:05]} 32. Rg1 {[%emt 0:00:35]} Rxg1+ {[%emt 0:01:21]} 33. Rxg1 {[%emt 0:00:10]} Qxf4 {[%emt 0:00:03]} 34. Qc8+ {[%emt 0:00:03]} Ke7 {[%emt 0:00:03]} 35. Qxc7+ {[%emt 0:00:02]} Kf8 {[%emt 0:00:02]} 36. Qc8+ {[%emt 0:00:20]} Ke7 {[%emt 0:00:03]} 37. Re1+ {[%emt 0:00:10]} Kf6 {[%emt 0:00:07]} 38. Qe6+ {[%emt 0:00:07]} Kg7 {[%emt 0:00:04]} 39. Rg1+ {[%emt 0:00:06]} Kf8 {[%emt 0:00:15]} 40. Qc8+ {[%emt 0:00:05]} Ke7 {[%emt 0:00:02]} 41. Re1+ {[%emt 0:00:05]} Kf6 {[%emt 0:00:20]} 42. Bg2 {[%emt 0:00:04]} Kg7 {[%emt 0:01:00]} 43. Rg1 {[%emt 0:00:06]} Kh7 {[%emt 0:00:20]} 44. Qe6 {[%emt 0:00:05]} Ng5 {[%emt 0:00:17]} 45. Qe7+ {[%emt 0:00:03]} Kh6 {[%emt 0:00:02]} 46. Qe1 {[%emt 0:00:10]} Rxa2 {[%emt 0:00:28]} 47. Qd1 {[%emt 0:00:07]} Ne4 {[%emt 0:00:23]} 0-1

[Event "European Online Club-ch-G 2021"]
[Site "Online"]
[Date "2021.03.27"]
[Round "5.19"]
[White "Gasimov, Parviz"]
[Black "Frank, Adam"]
[Result "1-0"]
[ECO "C55"]
[WhiteElo "2337"]
[BlackElo "2238"]
[Annotator "NA"]
[PlyCount "81"]
[EventDate "2021.03.27"]
[EventType "team-tourn"]
[EventCountry "NET"]
[SourceTitle "playchess.com"]
[Source "ChessBase"]
[SourceQuality "1"]
[TimeControl "900+5"]

1. e4 {[%emt 0:00:00]} e5 {[%emt 0:00:07]} 2. Bc4 {[%emt 0:00:04]} Nf6 {[%emt 0:00:04]} 3. d3 {[%emt 0:00:01]} Nc6 {[%emt 0:00:11]} 4. Nf3 {[%emt 0:00:02]} Be7 {[%emt 0:00:01]} 5. O-O {[%emt 0:00:14]} O-O {[%emt 0:00:02]} 6. Re1 {[%emt 0:00:07]} d6 {[%emt 0:00:05]} 7. a4 {[%emt 0:00:04]} Bg4 {[%emt 0:00:04]} 8. h3 {[%emt 0:00:41]} Bh5 {[%emt 0:00:01]} 9. Nbd2 {[%emt 0:00:35]} d5 {[%emt 0:03:42]} 10. exd5 {[%emt 0:02:12]} Nxd5 {[%emt 0:00:02]} 11. g4 {[%emt 0:00:06]} Bg6 {[%emt 0:01:11]} 12. Nxe5 {[%emt 0:00:09]} Nxe5 {[%emt 0:00:22]} 13. Rxe5 {[%emt 0:00:05]} c6 {[%emt 0:00:20]} 14. Qf3 {[%emt 0:02:56]} Bd6 {[%emt 0:00:02]} 15. Rxd5 {[%emt 0:00:08]} cxd5 {[%emt 0:00:02]} 16. Bxd5 {[%emt 0:00:01]} Kh8 {[%emt 0:00:27]} 17. Nc4 {[%emt 0:01:06]} f5 {[%emt 0:00:23]} 18. Nxd6 {[%emt 0:01:09]} fxg4 {[%emt 0:01:39]} 19. Qg3 {[%emt 0:00:55]} Qa5 {[%emt 0:00:02]} 20. Qe5 {[%emt 0:01:28]} Rae8 {[%emt 0:01:14]} 21. Nxe8 {[%emt 0:00:55]} Rxe8 {[%emt 0:00:03]} 22. Qd4 {[%emt 0:01:57]} Qe1+ {[%emt 0:00:03]} 23. Kh2 {[%emt 0:00:29]} Rf8 {[%emt 0:02:24]} 24. Bg2 {[%emt 0:00:47]} gxh3 {[%emt 0:03:38]} 25. Bh6 {[%emt 0:00:16]} Qe7 {[%emt 0:00:02]} 26. Bxh3 {[%emt 0:00:16]} Qc7+ {[%emt 0:00:02]} 27. Kg1 {[%emt 0:00:08]} Be8 {[%emt 0:00:32]} 28. Re1 {[%emt 0:00:10]} Qf7 {[%emt 0:00:11]} 29. Bg2 {[%emt 0:00:07]} Qg6 {[%emt 0:00:07]} 30. Bf4 {[%emt 0:00:06]} Bc6 {[%emt 0:00:07]} 31. Bg3 {[%emt 0:00:03]} h5 {[%emt 0:00:01]} 32. Qd6 {[%emt 0:00:05]} Qf5 {[%emt 0:00:05]} 33. Bxc6 {[%emt 0:00:10]} bxc6 {[%emt 0:00:04]} 34. Re5 {[%emt 0:00:02]} Qf3 {[%emt 0:00:02]} 35. Rxh5+ {[%emt 0:00:03]} Qxh5 {[%emt 0:00:02]} 36. Qxf8+ {[%emt 0:00:03]} Kh7 {[%emt 0:00:01]} 37. Kg2 {[%emt 0:00:08]} Qd5+ {[%emt 0:00:05]} 38. Qf3 {[%emt 0:00:03]} Qc5 {[%emt 0:00:01]} 39. Qe4+ {[%emt 0:00:02]} Kh8 {[%emt 0:00:01]} 40. Qh4+ {[%emt 0:00:04]} Kg8 {[%emt 0:00:01]} 41. Qc4+ {[%emt 0:00:02]} 1-0

[Event "European Online Club-ch-G 2021"]
[Site "Online"]
[Date "2021.03.27"]
[Round "5.20"]
[White "Paseka, Matyas"]
[Black "Hasanzade, Toghrul"]
[Result "1/2-1/2"]
[ECO "B14"]
[WhiteElo "2069"]
[BlackElo "2322"]
[Annotator "NA"]
[PlyCount "64"]
[EventDate "2021.03.27"]
[EventType "team-tourn"]
[EventCountry "NET"]
[SourceTitle "playchess.com"]
[Source "ChessBase"]
[SourceQuality "1"]
[TimeControl "900+5"]

1. e4 {[%emt 0:00:00]} c6 {[%emt 0:00:10]} 2. d4 {[%emt 0:00:03]} d5 {[%emt 0:00:07]} 3. exd5 {[%emt 0:00:01]} cxd5 {[%emt 0:00:04]} 4. c4 {[%emt 0:00:01]} Nf6 {[%emt 0:00:12]} 5. Nc3 {[%emt 0:00:02]} g6 {[%emt 0:00:03]} 6. cxd5 {[%emt 0:00:27]} Bg7 {[%emt 0:00:08]} 7. Qb3 {[%emt 0:00:08]} O-O {[%emt 0:00:09]} 8. Be2 {[%emt 0:00:04]} Na6 {[%emt 0:00:04]} 9. Bf3 {[%emt 0:00:05]} Qb6 {[%emt 0:00:03]} 10. Qxb6 {[%emt 0:01:18]} axb6 {[%emt 0:00:26]} 11. Nge2 {[%emt 0:00:06]} Nb4 {[%emt 0:00:09]} 12. O-O {[%emt 0:00:17]} Rd8 {[%emt 0:00:08]} 13. Bg5 {[%emt 0:01:51]} Nbxd5 {[%emt 0:00:41]} 14. Nxd5 {[%emt 0:00:23]} Nxd5 {[%emt 0:00:04]} 15. Nc3 {[%emt 0:00:17]} Be6 {[%emt 0:00:29]} 16. Nxd5 {[%emt 0:00:33]} Bxd5 {[%emt 0:00:05]} 17. Bxe7 {[%emt 0:00:12]} Rd7 {[%emt 0:00:12]} 18. Bxd5 {[%emt 0:00:14]} Rxd5 {[%emt 0:00:15]} 19. Rac1 {[%emt 0:00:58]} Bxd4 {[%emt 0:00:12]} 20. Rcd1 {[%emt 0:00:51]} Kg7 {[%emt 0:01:26]} 21. Rd2 {[%emt 0:01:45]} Re8 {[%emt 0:08:12]} 22. Bb4 {[%emt 0:00:16]} Kf6 {[%emt 0:00:23]} 23. Rxd4 {[%emt 0:02:05]} Rxd4 {[%emt 0:00:03]} 24. Bc3 {[%emt 0:00:02]} Red8 {[%emt 0:00:02]} 25. Rd1 {[%emt 0:00:03]} Ke5 {[%emt 0:00:02]} 26. f3 {[%emt 0:00:05]} b5 {[%emt 0:00:12]} 27. b4 {[%emt 0:00:09]} f5 {[%emt 0:00:10]} 28. Kf2 {[%emt 0:01:30]} f4 {[%emt 0:00:03]} 29. g4 {[%emt 0:00:02]} R8d5 {[%emt 0:00:47]} 30. Rd2 {[%emt 0:00:50]} Rd6 {[%emt 0:00:13]} 31. Rd1 {[%emt 0:02:34]} R6d5 {[%emt 0:00:05]} 32. Rd2 {[%emt 0:00:08]} Rd6 {[%emt 0:00:02]} 1/2-1/2

[Event "European Online Club-ch-G 2021"]
[Site "Online"]
[Date "2021.03.27"]
[Round "6.1"]
[White "Altun, Arda"]
[Black "Mica, Marek"]
[Result "1-0"]
[ECO "B19"]
[WhiteElo "2074"]
[BlackElo "2274"]
[Annotator "NA"]
[PlyCount "137"]
[EventDate "2021.03.27"]
[EventType "team-tourn"]
[EventCountry "NET"]
[SourceTitle "playchess.com"]
[Source "ChessBase"]
[SourceQuality "1"]
[TimeControl "900+5"]

1. e4 {[%emt 0:00:00]} c6 {[%emt 0:00:05]} 2. d4 {[%emt 0:00:14]} d5 {[%emt 0:00:02]} 3. Nc3 {[%emt 0:00:07]} dxe4 {[%emt 0:00:03]} 4. Nxe4 {[%emt 0:00:02]} Bf5 {[%emt 0:00:01]} 5. Ng3 {[%emt 0:00:02]} Bg6 {[%emt 0:00:02]} 6. h4 {[%emt 0:00:02]} h6 {[%emt 0:00:02]} 7. Nf3 {[%emt 0:00:03]} Nd7 {[%emt 0:00:01]} 8. h5 {[%emt 0:00:02]} Bh7 {[%emt 0:00:02]} 9. Bd3 {[%emt 0:00:02]} Bxd3 {[%emt 0:00:01]} 10. Qxd3 {[%emt 0:00:02]} e6 {[%emt 0:00:02]} 11. Bd2 {[%emt 0:00:03]} Ngf6 {[%emt 0:00:05]} 12. O-O-O {[%emt 0:00:02]} Be7 {[%emt 0:00:03]} 13. Ne4 {[%emt 0:00:03]} O-O {[%emt 0:01:04]} 14. Kb1 {[%emt 0:02:16]} Nxe4 {[%emt 0:00:50]} 15. Qxe4 {[%emt 0:00:03]} Nf6 {[%emt 0:00:02]} 16. Qe2 {[%emt 0:00:06]} Qd5 {[%emt 0:00:07]} 17. Ne5 {[%emt 0:02:44]} Qe4 {[%emt 0:01:02]} 18. Qxe4 {[%emt 0:00:46]} Nxe4 {[%emt 0:00:03]} 19. Be3 {[%emt 0:00:02]} f5 {[%emt 0:01:59]} 20. Ng6 {[%emt 0:02:04]} Rf7 {[%emt 0:00:03]} 21. f3 {[%emt 0:01:11]} Nf6 {[%emt 0:00:15]} 22. c4 {[%emt 0:00:24]} Kh7 {[%emt 0:01:22]} 23. Nf4 {[%emt 0:00:59]} Bd6 {[%emt 0:00:09]} 24. Rde1 {[%emt 0:00:17]} Re8 {[%emt 0:00:34]} 25. Bd2 {[%emt 0:00:19]} Bxf4 {[%emt 0:00:20]} 26. Bxf4 {[%emt 0:00:03]} b5 {[%emt 0:00:02]} 27. b3 {[%emt 0:00:12]} Rb7 {[%emt 0:01:08]} 28. Kc2 {[%emt 0:00:03]} Kg8 {[%emt 0:00:09]} 29. Be5 {[%emt 0:00:17]} Kf7 {[%emt 0:00:06]} 30. c5 {[%emt 0:01:04]} a5 {[%emt 0:00:41]} 31. a3 {[%emt 0:00:10]} Rd7 {[%emt 0:00:15]} 32. Bd6 {[%emt 0:01:59]} Red8 {[%emt 0:00:17]} 33. Reg1 {[%emt 0:00:07]} f4 {[%emt 0:03:20]} 34. Rh4 {[%emt 0:00:08]} Nd5 {[%emt 0:01:09]} 35. Bxf4 {[%emt 0:00:44]} Ne7 {[%emt 0:01:30]} 36. Be5 {[%emt 0:00:11]} Nf5 {[%emt 0:00:01]} 37. Rf4 {[%emt 0:00:04]} Kg8 {[%emt 0:00:16]} 38. Kc3 {[%emt 0:00:07]} Ng3 {[%emt 0:00:05]} 39. Re1 {[%emt 0:00:16]} Kh7 {[%emt 0:00:33]} 40. Bd6 {[%emt 0:00:38]} Nxh5 {[%emt 0:00:09]} 41. Rfe4 {[%emt 0:00:11]} Nf6 {[%emt 0:00:04]} 42. Rxe6 {[%emt 0:00:02]} Nd5+ {[%emt 0:00:02]} 43. Kc2 {[%emt 0:00:04]} Kg8 {[%emt 0:00:04]} 44. Re8+ {[%emt 0:00:01]} Kf7 {[%emt 0:00:03]} 45. R8e4 {[%emt 0:00:08]} Ra8 {[%emt 0:00:16]} 46. g4 {[%emt 0:00:07]} a4 {[%emt 0:00:05]} 47. b4 {[%emt 0:00:02]} Rdd8 {[%emt 0:00:07]} 48. f4 {[%emt 0:00:13]} Re8 {[%emt 0:00:02]} 49. f5 {[%emt 0:00:10]} Rxe4 {[%emt 0:00:08]} 50. Rxe4 {[%emt 0:00:01]} Re8 {[%emt 0:00:02]} 51. Be5 {[%emt 0:00:08]} g6 {[%emt 0:00:09]} 52. Re1 {[%emt 0:00:07]} h5 {[%emt 0:00:03]} 53. gxh5 {[%emt 0:00:03]} gxf5 {[%emt 0:00:08]} 54. Kd3 {[%emt 0:00:03]} Rg8 {[%emt 0:00:04]} 55. h6 {[%emt 0:00:04]} Kg6 {[%emt 0:00:03]} 56. Rg1+ {[%emt 0:00:03]} Kh7 {[%emt 0:00:02]} 57. Rg7+ {[%emt 0:00:04]} Rxg7 {[%emt 0:00:01]} 58. hxg7 {[%emt 0:00:01]} Kg8 {[%emt 0:00:02]} 59. Ke2 {[%emt 0:00:06]} Kf7 {[%emt 0:00:05]} 60. Kf3 {[%emt 0:00:03]} Kg8 {[%emt 0:00:04]} 61. Kg3 {[%emt 0:00:04]} Kh7 {[%emt 0:00:03]} 62. Kh4 {[%emt 0:00:04]} Ne3 {[%emt 0:00:10]} 63. Kg5 {[%emt 0:00:08]} Nc4 {[%emt 0:00:14]} 64. Kf6 {[%emt 0:00:13]} Kg8 {[%emt 0:00:02]} 65. Kxf5 {[%emt 0:00:04]} Kf7 {[%emt 0:00:06]} 66. d5 {[%emt 0:00:03]} cxd5 {[%emt 0:00:01]} 67. c6 {[%emt 0:00:04]} Nb6 {[%emt 0:00:08]} 68. c7 {[%emt 0:00:03]} Nc8 {[%emt 0:00:06]} 69. Bd4 {[%emt 0:00:12]} 1-0

[Event "European Online Club-ch-G 2021"]
[Site "Online"]
[Date "2021.03.27"]
[Round "6.2"]
[White "Gnojek, Petr"]
[Black "Danaci, Ege"]
[Result "0-1"]
[ECO "E81"]
[WhiteElo "2267"]
[BlackElo "1996"]
[Annotator "NA"]
[PlyCount "78"]
[EventDate "2021.03.27"]
[EventType "team-tourn"]
[EventCountry "NET"]
[SourceTitle "playchess.com"]
[Source "ChessBase"]
[SourceQuality "1"]
[TimeControl "900+5"]

1. d4 {[%emt 0:00:00]} Nf6 {[%emt 0:00:04]} 2. c4 {[%emt 0:00:03]} g6 {[%emt 0:00:02]} 3. f3 {[%emt 0:00:03]} Bg7 {[%emt 0:00:02]} 4. e4 {[%emt 0:00:02]} O-O {[%emt 0:00:03]} 5. Nc3 {[%emt 0:00:02]} d6 {[%emt 0:00:01]} 6. Be3 {[%emt 0:00:03]} c5 {[%emt 0:00:01]} 7. Nge2 {[%emt 0:00:04]} cxd4 {[%emt 0:00:04]} 8. Nxd4 {[%emt 0:00:03]} Nc6 {[%emt 0:00:01]} 9. Nc2 {[%emt 0:00:52]} a5 {[%emt 0:00:29]} 10. Be2 {[%emt 0:00:10]} a4 {[%emt 0:00:03]} 11. O-O {[%emt 0:00:24]} Qa5 {[%emt 0:00:02]} 12. Qd2 {[%emt 0:00:32]} Be6 {[%emt 0:00:59]} 13. Rad1 {[%emt 0:01:12]} Nd7 {[%emt 0:00:54]} 14. Na3 {[%emt 0:04:02]} Rfc8 {[%emt 0:01:21]} 15. Nd5 {[%emt 0:00:15]} Bxd5 {[%emt 0:01:08]} 16. exd5 {[%emt 0:00:05]} Qxd2 {[%emt 0:00:33]} 17. Rxd2 {[%emt 0:00:20]} Nb4 {[%emt 0:00:03]} 18. Bd4 {[%emt 0:03:18]} Nxa2 {[%emt 0:00:44]} 19. Nc2 {[%emt 0:01:00]} Nc5 {[%emt 0:02:02]} 20. Bxg7 {[%emt 0:00:10]} Kxg7 {[%emt 0:00:11]} 21. Ra1 {[%emt 0:01:30]} Nb3 {[%emt 0:00:10]} 22. Rdd1 {[%emt 0:00:02]} Nxa1 {[%emt 0:00:57]} 23. Rxa1 {[%emt 0:00:02]} b5 {[%emt 0:00:03]} 24. Rxa2 {[%emt 0:00:01]} bxc4 {[%emt 0:00:09]} 25. Ra3 {[%emt 0:01:39]} Rab8 {[%emt 0:00:34]} 26. Ne3 {[%emt 0:00:04]} Rxb2 {[%emt 0:01:15]} 27. Bxc4 {[%emt 0:00:03]} Rb4 {[%emt 0:00:09]} 28. Be2 {[%emt 0:00:39]} Rb3 {[%emt 0:00:24]} 29. Rxb3 {[%emt 0:00:28]} axb3 {[%emt 0:00:04]} 30. Nc4 {[%emt 0:00:04]} b2 {[%emt 0:00:17]} 31. Nxb2 {[%emt 0:00:07]} Rc2 {[%emt 0:00:01]} 32. Kf2 {[%emt 0:00:02]} Rxb2 {[%emt 0:00:02]} 33. Ke3 {[%emt 0:00:02]} Kf6 {[%emt 0:00:12]} 34. f4 {[%emt 0:00:02]} Rxe2+ {[%emt 0:00:24]} 35. Kxe2 {[%emt 0:00:03]} e6 {[%emt 0:00:01]} 36. Ke3 {[%emt 0:00:18]} Kf5 {[%emt 0:00:33]} 37. h3 {[%emt 0:00:06]} h5 {[%emt 0:00:03]} 38. g3 {[%emt 0:00:02]} exd5 {[%emt 0:00:16]} 39. Kd4 {[%emt 0:00:03]} h4 {[%emt 0:00:07]} 0-1

[Event "European Online Club-ch-G 2021"]
[Site "Online"]
[Date "2021.03.27"]
[Round "6.3"]
[White "Yildirim, Ibrahim Halil"]
[Black "Frank, Adam"]
[Result "0-1"]
[ECO "B07"]
[WhiteElo "1783"]
[BlackElo "2238"]
[Annotator "NA"]
[PlyCount "66"]
[EventDate "2021.03.27"]
[EventType "team-tourn"]
[EventCountry "NET"]
[SourceTitle "playchess.com"]
[Source "ChessBase"]
[SourceQuality "1"]
[TimeControl "900+5"]

1. e4 {[%emt 0:00:00]} d6 {[%emt 0:00:05]} 2. d4 {[%emt 0:00:02]} Nf6 {[%emt 0:00:01]} 3. Nc3 {[%emt 0:00:02]} g6 {[%emt 0:00:01]} 4. Be3 {[%emt 0:00:01]} a6 {[%emt 0:00:02]} 5. Qd2 {[%emt 0:00:07]} b5 {[%emt 0:00:03]} 6. Bd3 {[%emt 0:01:46]} Bb7 {[%emt 0:00:08]} 7. f3 {[%emt 0:00:07]} Nbd7 {[%emt 0:00:03]} 8. O-O-O {[%emt 0:00:29]} c5 {[%emt 0:00:52]} 9. dxc5 {[%emt 0:00:13]} dxc5 {[%emt 0:00:10]} 10. h4 {[%emt 0:01:03]} h5 {[%emt 0:00:11]} 11. Nh3 {[%emt 0:00:08]} Bg7 {[%emt 0:00:05]} 12. Kb1 {[%emt 0:00:11]} Qc7 {[%emt 0:01:18]} 13. Bf4 {[%emt 0:03:41]} e5 {[%emt 0:01:44]} 14. Be3 {[%emt 0:00:48]} O-O {[%emt 0:00:03]} 15. Nf2 {[%emt 0:02:11]} Rfd8 {[%emt 0:01:12]} 16. g4 {[%emt 0:01:14]} Nb6 {[%emt 0:00:09]} 17. gxh5 {[%emt 0:02:05]} Nc4 {[%emt 0:00:21]} 18. Qc1 {[%emt 0:00:19]} Nxe3 {[%emt 0:00:04]} 19. Qxe3 {[%emt 0:00:02]} Nxh5 {[%emt 0:00:02]} 20. Be2 {[%emt 0:01:14]} Rd4 {[%emt 0:00:33]} 21. Nd5 {[%emt 0:00:33]} Bxd5 {[%emt 0:00:32]} 22. exd5 {[%emt 0:00:01]} Rd8 {[%emt 0:02:37]} 23. c4 {[%emt 0:00:10]} bxc4 {[%emt 0:00:11]} 24. Qc3 {[%emt 0:00:05]} e4 {[%emt 0:00:23]} 25. Qc2 {[%emt 0:00:02]} Ng3 {[%emt 0:01:38]} 26. Rhg1 {[%emt 0:00:02]} Rb8 {[%emt 0:00:13]} 27. fxe4 {[%emt 0:00:20]} Qf4 {[%emt 0:00:38]} 28. Rg2 {[%emt 0:00:17]} Nxe4 {[%emt 0:00:29]} 29. Nh3 {[%emt 0:00:06]} Qxh4 {[%emt 0:00:07]} 30. Rh1 {[%emt 0:00:05]} Rd2 {[%emt 0:00:08]} 31. Qxc4 {[%emt 0:00:03]} Rbxb2+ {[%emt 0:00:06]} 32. Kc1 {[%emt 0:00:01]} Nc3 {[%emt 0:00:31]} 33. Qxh4 {[%emt 0:00:08]} Rbc2# {[%emt 0:00:03]} 0-1

[Event "European Online Club-ch-G 2021"]
[Site "Online"]
[Date "2021.03.27"]
[Round "6.4"]
[White "Laurincova, Kristyna"]
[Black "Ozata, Doruk"]
[Result "0-1"]
[ECO "B33"]
[WhiteElo "2008"]
[BlackElo "1646"]
[Annotator "NA"]
[PlyCount "84"]
[EventDate "2021.03.27"]
[EventType "team-tourn"]
[EventCountry "NET"]
[SourceTitle "playchess.com"]
[Source "ChessBase"]
[SourceQuality "1"]
[TimeControl "900+5"]

1. e4 {[%emt 0:00:00]} c5 {[%emt 0:00:04]} 2. Nf3 {[%emt 0:00:03]} Nc6 {[%emt 0:00:03]} 3. d4 {[%emt 0:00:02]} cxd4 {[%emt 0:00:01]} 4. Nxd4 {[%emt 0:00:02]} Nf6 {[%emt 0:00:01]} 5. Nc3 {[%emt 0:00:03]} e5 {[%emt 0:00:01]} 6. Ndb5 {[%emt 0:00:42]} d6 {[%emt 0:00:03]} 7. Bg5 {[%emt 0:00:02]} a6 {[%emt 0:00:01]} 8. Na3 {[%emt 0:00:02]} b5 {[%emt 0:00:01]} 9. Nd5 {[%emt 0:00:04]} Be7 {[%emt 0:00:01]} 10. Bxf6 {[%emt 0:00:02]} Bxf6 {[%emt 0:00:01]} 11. c3 {[%emt 0:00:02]} O-O {[%emt 0:00:04]} 12. Nc2 {[%emt 0:00:16]} Bg5 {[%emt 0:00:03]} 13. a4 {[%emt 0:00:40]} b4 {[%emt 0:00:03]} 14. Ncxb4 {[%emt 0:00:55]} Nxb4 {[%emt 0:00:12]} 15. Nxb4 {[%emt 0:00:42]} a5 {[%emt 0:00:54]} 16. Nd5 {[%emt 0:00:16]} Be6 {[%emt 0:00:15]} 17. Bb5 {[%emt 0:00:27]} f5 {[%emt 0:00:46]} 18. exf5 {[%emt 0:00:24]} Bxf5 {[%emt 0:00:10]} 19. O-O {[%emt 0:00:08]} Ra7 {[%emt 0:00:56]} 20. Qe2 {[%emt 0:01:19]} Be6 {[%emt 0:01:57]} 21. Rad1 {[%emt 0:00:16]} Raf7 {[%emt 0:00:07]} 22. Rd3 {[%emt 0:01:27]} Bh4 {[%emt 0:01:50]} 23. f3 {[%emt 0:01:08]} e4 {[%emt 0:02:08]} 24. Qxe4 {[%emt 0:02:17]} Bf5 {[%emt 0:00:15]} 25. Qd4 {[%emt 0:00:45]} Bxd3 {[%emt 0:00:11]} 26. Bxd3 {[%emt 0:00:02]} Bf6 {[%emt 0:00:34]} 27. Qe4 {[%emt 0:00:34]} g6 {[%emt 0:00:12]} 28. Bc4 {[%emt 0:00:54]} Kh8 {[%emt 0:00:25]} 29. Nf4 {[%emt 0:00:47]} Qb6+ {[%emt 0:00:38]} 30. Kh1 {[%emt 0:00:14]} Re7 {[%emt 0:00:03]} 31. Qc2 {[%emt 0:00:35]} Qc5 {[%emt 0:00:56]} 32. b3 {[%emt 0:02:16]} Bg5 {[%emt 0:03:02]} 33. Ne6 {[%emt 0:00:10]} Qf5 {[%emt 0:00:22]} 34. Qxf5 {[%emt 0:00:08]} Rxf5 {[%emt 0:00:01]} 35. Rd1 {[%emt 0:00:04]} d5 {[%emt 0:00:10]} 36. Nxg5 {[%emt 0:00:03]} dxc4 {[%emt 0:00:08]} 37. Ne4 {[%emt 0:00:06]} cxb3 {[%emt 0:00:01]} 38. Rb1 {[%emt 0:00:07]} Rd5 {[%emt 0:00:29]} 39. Kg1 {[%emt 0:00:04]} Rb7 {[%emt 0:00:02]} 40. c4 {[%emt 0:00:06]} Rd4 {[%emt 0:00:14]} 41. Nc5 {[%emt 0:00:02]} Rb4 {[%emt 0:00:11]} 42. Rxb3 {[%emt 0:00:08]} Rdxc4 {[%emt 0:00:11]} 0-1